Cogmind - Beta 16 @@@ ROGUE MODE // 2025.10.23 @ 18:32:41 Player: GiggleBox Result: Destroyed by G-73 Enforcer with Heavy Laser Performance ------------- Evolutions (8) 4000 Regions Visited (23) 4600 Robots Destroyed (373) 1865 Value Destroyed (18382) 18382 Prototype IDs (65) 1300 Alien Tech Used (0) 0 Bonus (15754) 15754 TOTAL SCORE: 45901 Bonus ------- Triggered Max Security 1000 High Alert Combat Kills 5421 Follower Combat Kills 1507 Entered Garrisons 200 Aligned with FarCom 300 Met Imprinter 300 Acquired ECA 300 Met Warlord at Base 500 MAIN.C Attacked Warlord 500 Built Enhanced Grunts 300 Met R17 at Cetus 500 Met R17 at Research 2000 Met Warlord at Research 2000 Invited to Help at Command 2000 Scanned by Researcher 500 Friendly Fire -1574 Cogmind --------- Core Integrity 0/1450 Matter 300/300 Energy 99/100 System Corruption 0% Temperature Cool (9) Movement Core (50) Location -2/Testing Parts ------- > --- POWER (2) -------- (None) > --- PROPULSION (5) --- (None) > --- UTILITY (11) ----- Enhanced Optical Array Advanced Target Analyzer Experimental Core Analyzer > --- WEAPON (5) ------- (None) > --- INVENTORY (5) ---- (None) Peak State ------------ > --- POWER ------------ Quantum Reactor Improved Quantum Reactor > --- PROPULSION ------- Biometal Medium Treads Centrium Heavy Treads Centrium Heavy Treads > --- UTILITY ---------- Experimental Coolant Injector Huge Storage Unit Enhanced Optical Array Advanced Targeting Computer Advanced Target Analyzer Experimental Core Analyzer Armor Integrity Analyzer Improved Transmission Jammer Centrium Medium Armor Plating Advanced Remote Shield Advanced Corruption Screen > --- WEAPON ----------- Enhanced Coil Gun Advanced KE Penetrator Omega Cannon Longsword +1 > --- INVENTORY -------- Biometal Medium Treads Centrium Heavy Treads Centrium Heavy Treads Armored Huge Wheel Advanced Power Amplifier Large Matter Pod Experimental Core Analyzer Centrium Medium Armor Plating Centrium Medium Armor Plating Graphene Brace Experimental Thermal Shield Advanced Remote Shield Long-range Tractor Beam Splice Drone Bay Enhanced Nova Cannon Enhanced Coil Gun Railgun Railgun Railgun Micro-nuke Launcher [Rating: 200] Favorites ----------- Power Reinforced Deuterium Engine Engine Reinforced Deuterium Engine Power Core Neutrino Core Reactor Quantum Reactor Propulsion Improved Treads Treads Improved Treads Leg Myomer Leg Wheel Armored Huge Wheel Utility High-capacity Storage Unit Device Improved Transmission Jammer Storage High-capacity Storage Unit Processor Advanced Targeting Computer Hackware Hacking Suite Protection Hardened Heavy Armor Plating Weapon Autogun Energy Gun EM Pulse Gun Ballistic Gun Autogun Ballistic Cannon Advanced Assault Cannon Launcher Proton Missile Launcher Slashing Weapon Longsword +1 Special Melee Weapon Datajack Build | -11 -10 -10 -10 -9 -8 -8 -7 -7 -7 -6 -6 -5 -5 -5 -4 -4 -4 -4 -4 -4 -3 -2 -2 ------- Run | Yrd Mat Min Exi Min Mat Gar Fac Low Zio Pro Fac Fac Upp War Pro Fac Ext Cet Arc Hub Res Res Tes Slots Evolved 16 | . . . . . 4 . 2 . . . 2 2 . . . 2 . . . . 2 2 . Power 1 | . . . . . . . . . . . . . . . . 1 . . . . . . . Propulsion 3 | . . . . . 1 . 1 . . . . . . . . . . . . . . 1 . Utility 9 | . . . . . 2 . 1 . . . 1 2 . . . 1 . . . . 2 . . Weapon 3 | . . . . . 1 . . . . . 1 . . . . . . . . . . 1 . Parts Attached 187 | 9 8 1 . 3 24 10 28 3 3 2 11 9 . 11 4 11 10 11 . . 8 8 13 Power 23 | 1 . . . . 1 1 3 . . . . . . . 2 4 4 2 . . 2 2 1 Engine 8 | 1 . . . . 1 1 3 . . . . . . . 1 1 . . . . . . . Core 7 | . . . . . . . . . . . . . . . 1 2 4 . . . . . . Reactor 8 | . . . . . . . . . . . . . . . . 1 . 2 . . 2 2 1 Propulsion 45 | 2 1 1 . 1 5 2 10 1 2 1 3 1 . 2 1 3 3 2 . . . 1 3 Treads 40 | 2 . 1 . 1 5 2 9 1 2 1 3 1 . 2 1 1 2 2 . . . 1 3 Leg 2 | . . . . . . . . . . . . . . . . 2 . . . . . . . Wheel 3 | . 1 . . . . . 1 . . . . . . . . . 1 . . . . . . Hover . | . . . . . . . . . . . . . . . . . . . . . . . . Flight . | . . . . . . . . . . . . . . . . . . . . . . . . Utility 69 | 3 4 . . 2 11 3 10 . . . 6 4 . 4 1 3 2 4 . . 5 3 4 Device 25 | 1 1 . . 1 3 . 4 . . . 4 2 . 3 1 1 1 1 . . 1 . 1 Storage 8 | 2 2 . . . 2 . . . . . . . . . . . . 2 . . . . . Processor 16 | . . . . . 3 . 2 . . . 1 1 . 1 . 1 . . . . 3 3 1 Hackware 3 | . . . . . 1 . 1 . . . . . . . . . . . . . 1 . . Protection 17 | . 1 . . 1 2 3 3 . . . 1 1 . . . 1 1 1 . . . . 2 Artifact . | . . . . . . . . . . . . . . . . . . . . . . . . Weapon 50 | 3 3 . . . 7 4 5 2 1 1 2 4 . 5 . 1 1 3 . . 1 2 5 Energy Gun 2 | 1 . . . . . . . . . . . . . 1 . . . . . . . . . Energy Cannon . | . . . . . . . . . . . . . . . . . . . . . . . . Ballistic Gun 31 | 2 2 . . . 4 2 3 . 1 . 1 2 . 4 . 1 1 3 . . . 2 3 Ballistic Cannon 8 | . . . . . . . 2 1 . . 1 2 . . . . . . . . 1 . 1 Launcher 6 | . . . . . 2 1 . 1 . 1 . . . . . . . . . . . . 1 Special Weapon . | . . . . . . . . . . . . . . . . . . . . . . . . Impact Weapon . | . . . . . . . . . . . . . . . . . . . . . . . . Slashing Weapon 1 | . . . . . 1 . . . . . . . . . . . . . . . . . . Piercing Weapon . | . . . . . . . . . . . . . . . . . . . . . . . . Special Melee Weapon 2 | . 1 . . . . 1 . . . . . . . . . . . . . . . . . Unidentified Prototypes 17 | . . . . 1 . . 1 . . . 1 1 . 4 . . . 5 . . . 2 2 Parts Lost 64 | . . . . 1 4 2 9 2 . 5 . 1 . . 2 8 1 1 . . 1 . 27 Power 8 | . . . . . . . 1 . . . . . . . 1 2 1 . . . 1 . 2 Propulsion 18 | . . . . . . 1 4 1 . 2 . 1 . . 1 4 . . . . . . 4 Utility 15 | . . . . 1 2 . . . . . . . . . . 1 . . . . . . 11 Weapon 23 | . . . . . 2 1 4 1 . 3 . . . . . 1 . 1 . . . . 10 Highest Loss Streak 14 | . . . . 1 1 1 3 2 . 4 . 1 . . 1 6 1 1 . . 1 . 14 To Critical Strikes . | . . . . . . . . . . . . . . . . . . . . . . . . Average Backups 19 | 3 16 20 20 19 19 19 19 18 19 17 16 19 18 19 19 17 19 20 22 22 21 21 15 Power . | . 1 1 1 1 1 1 . 1 . . . . . . . . 1 . . . . . . Propulsion 2 | 1 3 4 4 3 3 3 3 . 1 . . 2 2 2 2 1 1 1 3 3 3 3 3 Utility 9 | . 6 8 8 7 6 8 9 13 13 14 13 12 11 11 11 8 10 11 12 12 10 10 7 Weapon 5 | . 5 5 6 6 7 5 5 2 2 1 1 3 4 4 5 6 6 6 7 7 7 7 4 Tool/Special . | . . . . . . . . . . . . . . . . . . . . . . . . Unused Backups 52 | . 4 2 1 1 3 2 10 . 2 . 1 4 . 1 . 1 7 1 2 . 3 3 4 Power 4 | . 1 . . 1 . . . . 1 . . . . . . . 1 . . . . . . Propulsion 8 | . . 1 . . . . 3 . . . 1 . . . . . 1 . . . 1 . 1 Utility 19 | . 2 . 1 . 1 1 5 . 1 . . 3 . 1 . . . 1 . . . 1 2 Weapon 21 | . 1 1 . . 2 1 2 . . . . 1 . . . 1 5 . 2 . 2 2 1 Tool/Special . | . . . . . . . . . . . . . . . . . . . . . . . . Average Slot Usage (%) 96 | . 99 100 100 100 99 99 99 100 99 95 93 94 94 94 93 97 94 89 89 89 89 90 76 Engine 6 | . 13 14 14 14 9 9 7 7 7 7 6 5 5 5 4 5 . . . . . . . Reactor 1 | . . . . . . . . . . . . . . . . 2 . 2 10 10 8 8 6 Treads 22 | . 18 22 28 28 26 27 29 30 30 29 26 23 23 23 22 18 12 7 10 10 9 12 11 Wheel 1 | . 9 5 . . . . . . . . . . . . . . 3 3 . . . . . Device 6 | . 7 9 . 2 8 . 4 . . . 6 4 5 5 5 15 10 10 10 11 14 13 8 Storage 7 | . 14 14 14 14 9 9 7 7 7 7 6 5 5 5 5 5 5 5 5 5 4 4 3 Processor 19 | . . . . . 10 18 22 30 30 30 26 23 23 23 23 22 26 26 26 26 27 26 25 Protection 4 | . 6 4 14 11 7 8 2 . . . . 5 5 5 5 1 4 5 5 3 4 4 4 Ballistic Gun 19 | . 27 28 20 28 26 21 17 7 6 6 4 12 17 20 23 20 21 21 21 21 18 20 14 Ballistic Cannon 2 | . . . . . . . 2 14 11 7 8 4 . . . . . . . . . . . Slashing Weapon 1 | . . . . . . 4 2 . 2 3 6 4 5 1 . . . . . . . . . Peak Build Rating 200 | 7 12 13 13 19 30 36 55 51 54 54 70 84 80 94 93 115 108 151 152 149 175 192 200 Average Rating 67 | 5 11 12 12 14 25 32 45 49 50 49 61 80 80 85 89 104 101 130 151 148 169 188 160 On Entrance 73 | . 7 12 12 13 15 29 34 50 49 54 48 70 80 80 93 90 105 104 151 152 149 174 191 Avg Prop Armor Cover (%) 8 | . 9 10 . . . . 11 . . . . . 3 3 . 3 9 9 . . . . . Naked Turns . | . . . . . . . . . . . . . . . . . . . . . . . . Heaviest Build 166 | 18 58 58 58 59 67 66 72 72 72 72 80 103 93 107 105 103 101 153 153 154 162 166 163 Greatest Support 205 | 40 40 40 40 40 64 64 96 96 99 99 109 109 104 111 111 108 89 160 160 160 160 195 205 Greatest Overweight (x) 3 | . 3 3 1 1 1 1 2 . . . . . 1 1 1 2 3 3 . . 1 1 . Average Overweight (x) . | . 1 2 1 1 . . . . . . . . . . . . 2 2 . . . . . Largest Inventory Capacity 25 | 8 20 20 20 20 20 20 20 20 20 20 20 20 20 20 20 20 20 25 25 25 25 25 25 Average Capacity 20 | 7 18 20 20 20 20 20 20 20 20 20 20 20 20 20 20 20 20 21 25 25 25 25 22 Most Carried 25 | 5 20 20 20 20 20 20 20 20 20 20 20 20 18 20 20 20 20 25 25 25 25 25 25 Average Carried 19 | 3 16 19 19 19 19 19 19 19 19 19 19 19 18 19 19 17 19 21 24 25 24 24 18 Final Capacity 25 | 8 20 20 20 20 20 20 20 20 20 20 20 20 20 20 20 20 20 25 25 25 25 25 5 Final Carried 25 | 5 20 20 20 20 20 19 20 20 20 20 20 18 18 20 19 18 20 25 25 25 24 25 . Class Distribution -------------------- 33% | Scavenger-Gunner 26% | Mutant 16% | Gunner 12% | Skirmisher 3% | Scavenger-Assassin Dominant Class ---------------- Mutant | -10/Materials Mutant | -10/Mines Mutant | -10/Exiles Mutant | -9/Mines Skirmisher | -8/Materials Mutant | -8/Garrison Gunner | -7/Factory Gunner | -7/Lower Caves Gunner | -7/Zion Mutant | -6/Proximity Caves Mutant | -6/Factory Gunner | -5/Factory Scavenger-Gunner | -5/Upper Caves Scavenger-Gunner | -5/Warlord Scavenger-Gunner | -4/Proximity Caves Scavenger-Gunner | -4/Factory Scavenger-Gunner | -4/Extension Commander-Gunner | -4/Cetus Scavenger-Gunner | -4/Archives Scavenger-Gunner | -4/Hub_04(d) Scavenger-Gunner | -3/Research Scavenger-Gunner | -2/Research Scavenger-Gunner | -2/Testing Resources | -11 -10 -10 -10 -9 -8 -8 -7 -7 -7 -6 -6 -5 -5 -5 -4 -4 -4 -4 -4 -4 -3 -2 -2 ----------- Run | Yrd Mat Min Exi Min Mat Gar Fac Low Zio Pro Fac Fac Upp War Pro Fac Ext Cet Arc Hub Res Res Tes Matter Collected 13860 | 309 495 244 10 236 1241 966 2757 298 120 613 234 839 152 226 260 679 1201 490 85 117 868 210 1210 Remotely 2175 | . . . . . . . 718 . . . . . . . . 20 78 . . 68 517 . 774 Salvage Created 18325 | 123 513 256 . 126 1432 1391 3024 364 . 545 244 1221 246 82 453 860 2535 269 262 321 1562 84 2412 Parts 808 | 9 39 13 . 1 71 58 142 13 . 27 12 60 12 5 27 48 117 9 13 16 59 1 56 Haulers Intercepted 11 | . 2 . . . 3 . 2 . . . . 1 . . . . . . . . 2 1 . Recyclers Shooed 6 | . 2 . . 1 . . 1 . . . . . . . . . 2 . . . . . . Parts Field Recycled . | . . . . . . . . . . . . . . . . . . . . . . . . Retrieved Matter . | . . . . . . . . . . . . . . . . . . . . . . . . Parts Self-Destructed 76 | . . . . . . . . 9 4 24 . . 12 . 27 . . . . . . . . Prevented 8 | . . . . . . . . 4 . 4 . . . . . . . . . . . . . Parts Restored . | . . . . . . . . . . . . . . . . . . . . . . . . Kills | -11 -10 -10 -10 -9 -8 -8 -7 -7 -7 -6 -6 -5 -5 -5 -4 -4 -4 -4 -4 -4 -3 -2 -2 ------- Run | Yrd Mat Min Exi Min Mat Gar Fac Low Zio Pro Fac Fac Upp War Pro Fac Ext Cet Arc Hub Res Res Tes Combat Hostiles Destroyed 295 | . 11 4 . 7 27 23 46 11 . 15 1 16 4 . 6 15 31 4 3 3 17 . 51 Melee 3 | . . . . . . . . . . 2 . . . . . . . . . . . . 1 Guns 226 | . 11 4 . 7 21 14 32 4 . 4 . 12 4 . 6 15 31 4 3 3 17 . 34 Cannons 30 | . . . . . . . 14 4 . 7 1 4 . . . . . . . . . . . AOE 35 | . . . . . 6 8 . 3 . 2 . . . . . . . . . . . . 16 Classes Destroyed 28 | 2 5 . . 2 4 2 3 1 . 3 . . . . . . . . . . 3 . 3 Worker 13 | . . . . 1 1 . 6 . . . . 3 . . . . . . . . 2 . . Builder 7 | . . . . . 1 . . . . . 1 2 . . . . 3 . . . . . . Tunneler 2 | 2 . . . . . . . . . . . . . . . . . . . . . . . Hauler 11 | . 2 . . . 3 . 2 . . . . 1 . . . . . . . . 2 1 . Recycler 20 | 1 2 2 . . 2 . 7 . . . 1 1 . . . 1 2 . . . 1 . . Minesweeper 1 | . . . . . . . . . . 1 . . . . . . . . . . . . . Mechanic 2 | . 1 . . . 1 . . . . . . . . . . . . . . . . . . Operator 5 | . . . . . 1 . . . . . . . . . . 1 . . . 3 . . . Drone 2 | . . . . . . . . . . 2 . . . . . . . . . . . . . Watcher 18 | . 2 . . . 4 1 5 . . . 1 1 . . . . 3 . . 1 . . . Swarmer 49 | . 9 2 . . 7 3 . 5 . 5 . . . . . 5 8 . . . 5 . . Saboteur 3 | . . . . . . . . . . . . . . . . . . . . . . . 3 Grunt 122 | . 2 2 . . 18 11 23 3 . 7 . 5 3 . . . 12 . . 2 5 . 29 Brawler 9 | . . . . . 1 . 2 1 . . . 1 . . . . . . . . 1 . 3 Duelist 9 | . . . . . . . 1 . . . . . . . . . 1 . . . 1 . 6 Protector 3 | . . . . . . . 1 . . . . . . . . . . . . . . . 2 Sentry 30 | . . . . . 1 6 8 1 . 1 . 3 . 1 1 1 4 . 3 . . . . Demolisher 2 | . . . . . . . . . . . . . . . . . . . . . 2 . . Hunter 13 | . . . . . . 2 . . . . . 1 . . 2 2 4 . . 1 . . 1 Programmer 30 | . . . . . . 1 10 . . . . 6 1 . 2 7 . . . . . . 3 Heavy 2 | . . . . . . . 1 . . . 1 . . . . . . . . . . . . Behemoth 4 | . . . . . . . . 1 . . . . . . 1 . 2 . . . . . . Cetus Guard 4 | . . . . . . . . . . . . . . . . . . 4 . . . . . Investigator 1 | . . . . . . . . . . . . . . . . . . . . . . . 1 Striker 5 | . . . . . . . . . . . . . . . . . . . . . 3 . 2 Executioner 2 | . . . . . . . . . . . . . . . . . . . . . . . 2 Samaritan 1 | . . . . . . . . . . 1 . . . . . . . . . . . . . Assembled 7 | . . . . 7 . . . . . . . . . . . . . . . . . . . Savage 1 | . . . . . . 1 . . . . . . . . . . . . . . . . . Butcher 1 | . . . . . . . . . . . . . . . . . 1 . . . . . . Revision 2 | . . . . . . . . . . . . . . . . . . . . . 2 . . Best Kill Streak 41 | 2 4 2 . 5 7 7 7 4 . 6 3 4 2 . 2 6 9 2 3 2 9 1 41 Combat Bots Only 41 | . 3 2 . 4 4 7 5 4 . 6 1 3 2 . 2 5 9 2 3 1 9 . 41 Max Kills in Single Turn 5 | 1 2 2 . 2 5 4 2 1 . 2 2 2 1 1 1 2 2 1 2 1 2 1 3 Gunslinging 2 | . 1 1 . . . . . . . . . . . . . . 1 . 1 . 1 . 2 Exploded 4 | . . . . . 4 3 . 1 . 2 . . . . . . . . . . . . 3 Melee 1 | . . . . . . . . . . 1 . . . . . . . . . . . . 1 Uniques/NPCs Destroyed . | . . . . . . . . . . . . . . . . . . . . . . . . Combat | -11 -10 -10 -10 -9 -8 -8 -7 -7 -7 -6 -6 -5 -5 -5 -4 -4 -4 -4 -4 -4 -3 -2 -2 -------- Run | Yrd Mat Min Exi Min Mat Gar Fac Low Zio Pro Fac Fac Upp War Pro Fac Ext Cet Arc Hub Res Res Tes Hostile Shots Fired 1720 | . 42 7 . 31 81 102 389 75 . 100 2 62 14 33 41 114 59 17 6 6 44 18 477 Missed 518 | . 10 1 . 6 27 29 155 29 . 26 1 14 4 20 13 37 20 6 . 4 9 4 103 Hits 1202 | . 32 6 . 25 54 73 234 46 . 74 1 48 10 13 28 77 39 11 6 2 35 14 374 Melee 32 | . . . . 3 . . 2 . . . . . . 1 . . . . . . 1 . 25 Projectile 1170 | . 32 6 . 22 54 73 232 46 . 74 1 48 10 12 28 77 39 11 6 2 34 14 349 AOE 4 | . . . . . . . . . . . . . . 1 . . 1 . . . . . 2 Critical Strikes 46 | . . . . . 1 4 4 1 . 5 . 2 . . 1 1 5 2 . . 4 1 15 Actively Blocked 2 | . . . . . . . . . . . . . . . . . . . . . 1 1 . Part Disruptions 1 | . . . . . . . . . . . . . 1 . . . . . . . . . . Damage Taken 20816 | . 269 46 . 392 726 1040 2635 759 . 1465 14 989 204 240 663 1373 655 206 169 33 656 365 7917 Core 2510 | . 51 7 . 54 57 75 351 81 . 121 . 18 20 26 . 55 59 14 . . 66 52 1403 Absorbed by Shields 2154 | . 21 . . . 148 . . . . . . . . 47 . . 295 98 . . 203 112 1230 Reduced by Siege Mode 277 | . . . . . . . . . . . . . . . . . . . . . 8 . 269 Ignored by Resistances 164 | . . . . . . 6 57 . . . . . . . . . . . . . . . 101 Regen/Repaired (Parts) 1439 | . 102 . . . . . . . 917 . . 292 . 128 . . . . . . . . . Core Remaining (%) 78 | 100 . . . 55 . 76 . . . 21 100 . . . 93 . . . . 88 94 . . Volleys Fired 718 | 9 38 9 . 22 79 58 143 21 . 51 6 45 11 5 12 33 56 12 4 12 29 3 60 Largest 5 | 2 2 2 . 2 3 3 3 3 . 3 3 4 3 4 4 4 4 4 4 4 4 5 5 Hottest 165 | 40 46 46 . 46 71 71 108 108 . 108 114 151 88 132 132 134 134 136 135 135 135 165 165 Shots Fired 2139 | 18 76 18 . 44 235 150 399 50 . 111 14 138 33 17 48 127 221 48 17 49 115 15 196 Gun 1899 | 18 76 18 . 44 233 140 324 15 . 48 5 102 33 17 48 127 221 48 17 49 115 15 186 Cannon 212 | . . . . . . . 75 30 . 61 9 36 . . . . . . . . . . 1 Launcher 28 | . . . . . 2 10 . 5 . 2 . . . . . . . . . . . . 9 Special . | . . . . . . . . . . . . . . . . . . . . . . . . Kinetic 2110 | 18 76 18 . 44 233 140 399 45 . 109 14 138 33 16 48 127 221 48 17 49 115 15 187 Thermal . | . . . . . . . . . . . . . . . . . . . . . . . . Explosive 13 | . . . . . 2 2 . . . . . . . . . . . . . . . . 9 Electromagnetic 15 | . . . . . . 8 . 5 . 2 . . . . . . . . . . . . . Entropic 1 | . . . . . . . . . . . . . . 1 . . . . . . . . . Robot Hit Streak 43 | 4 8 3 . 5 13 43 36 13 . 11 4 31 9 6 10 12 34 16 15 10 17 5 23 Robot Miss Streak 5 | 2 5 2 . 2 2 2 4 1 . 3 2 2 3 2 3 4 3 1 1 2 3 2 2 Penetration Max 2 | . . . . . . . . . . 1 1 1 . . 1 1 2 1 . 2 1 . 2 Secondary Targets 55 | . 4 2 . . 5 . 3 . . 1 . 2 . . 2 4 5 1 1 . 6 . 19 Max Gunslinging Chain 3 | . 1 1 . . 1 . 1 . . 1 . 1 . . 1 1 1 1 1 . 2 . 3 Shots Hit Robots 1538 | 10 40 11 4 27 161 136 293 36 . 80 9 107 23 10 30 73 147 42 15 32 87 9 156 Core Hits 834 | 6 20 8 . 17 73 51 139 18 . 38 5 47 11 3 16 33 84 23 6 15 47 3 171 Critical Kills 48 | . . . . . . . 2 . . . 1 2 . . . 1 13 1 3 1 7 1 16 Critical Parts Destroyed 41 | . . . . . 1 1 2 . . . . 1 1 . 1 2 9 . . 4 6 2 11 Critical Strikes 112 | . . . . . 1 2 7 3 . 2 3 6 1 . 1 3 25 2 4 5 15 3 29 Destroy 98 | . . . . . 1 2 5 . . . 1 3 1 . 1 3 25 2 4 5 14 3 28 Blast 13 | . . . . . . . 2 3 . 2 2 3 . . . . . . . . . . 1 Sever 1 | . . . . . . . . . . . . . . . . . . . . . 1 . . Melee Attacks 141 | . . . 4 . 6 49 46 . 1 6 5 11 . 1 . 2 . . . . 6 3 1 Impact . | . . . . . . . . . . . . . . . . . . . . . . . . Slashing 134 | . . . . . 6 47 45 . 1 6 5 11 . 1 . 2 . . . . 6 3 1 Piercing . | . . . . . . . . . . . . . . . . . . . . . . . . Sneak Attacks 19 | . . . 4 . . 2 3 . . 2 1 3 . 1 . . . . . . 3 . . Combat Hostiles . | . . . . . . . . . . . . . . . . . . . . . . . . Follow-up Attacks . | . . . . . . . . . . . . . . . . . . . . . . . . Damage Inflicted 46407 | 102 661 202 . 452 3250 3505 6161 1061 . 2593 394 3075 487 313 784 1927 4384 1234 389 862 2761 314 11496 Guns 30950 | 102 618 202 . 451 2440 1601 4612 277 . 662 124 1940 487 210 784 1913 4244 1234 389 853 2340 314 5153 Cannons 4233 | . . . . . . . 1185 564 . 1312 194 872 . . . . . . . . . . 106 Explosions 8368 | . . . . . 792 748 . 220 . 312 . . . . . . 140 . . . . . 6156 Melee 2653 | . . . . . . 1156 342 . . 307 76 259 . 103 . . . . . . 410 . . Ramming 203 | . 43 . . 1 18 . 22 . . . . 4 . . . 14 . . . 9 11 . 81 Kinetic 35183 | 102 618 202 . 451 2440 1601 5797 841 . 1974 318 2812 487 210 784 1913 4244 1234 389 853 2340 314 5259 Thermal 572 | . . . . . 432 . . . . . . . . . . . 140 . . . . . . Explosive 6808 | . . . . . 360 292 . . . . . . . . . . . . . . . . 6156 Electromagnetic 988 | . . . . . . 456 . 220 . 312 . . . . . . . . . . . . . Impact . | . . . . . . . . . . . . . . . . . . . . . . . . Slashing 2653 | . . . . . . 1156 342 . . 307 76 259 . 103 . . . . . . 410 . . Piercing . | . . . . . . . . . . . . . . . . . . . . . . . . Highest Corruption 4 | . . . . . . 1 4 4 4 . . 1 . . . 4 4 4 4 4 . . . Average Corruption 2 | . . . . . . 1 2 4 4 . . 1 . . . 3 4 4 4 4 . . . Corruption Purged 2 | . . . . . . . 1 . . . . 1 . . . . . . . . . . . Corruption Blocked 5 | . . . . . . . . . . . . . . . . . . . . . 1 . 4 Effects 175 | . . . . . . 4 55 23 2 . . 2 . . . 17 46 12 2 12 . . . Message Errors 39 | . . . . . . 1 14 7 . . . 2 . . . 2 11 . 1 1 . . . Matter Fused 30 | . . . . . . . 9 4 . . . . . . . 3 7 5 . 2 . . . Heat Flow Errors 22 | . . . . . . 1 11 3 1 . . . . . . 1 2 2 . 1 . . . Energy Discharges 25 | . . . . . . 2 6 . . . . . . . . 6 10 . . 1 . . . Parts Rejected 4 | . . . . . . . 1 . . . . . . . . 1 . 1 . 1 . . . Parts Fused 2 | . . . . . . . . . . . . . . . . 1 1 . . . . . . Data Loss (minor) 24 | . . . . . . . 9 2 1 . . . . . . 1 6 2 . 3 . . . Data Loss (major) 9 | . . . . . . . 3 2 . . . . . . . 2 2 . . . . . . Misfires 7 | . . . . . . . 2 1 . . . . . . . . 1 . 1 2 . . . Alerts 7 | . . . . . . . . 3 . . . . . . . . 2 2 . . . . . Weapon Failures 6 | . . . . . . . . 1 . . . . . . . . 4 . . 1 . . . Overload Shots . | . . . . . . . . . . . . . . . . . . . . . . . . Overflow Damage 689 | . . . . . 65 58 137 . . 118 6 122 . . . 4 . . . . 58 . 121 Projectiles 96 | . . . . . . . 1 . . 15 . 59 . . . . . . . . . . 21 Explosions 217 | . . . . . 65 52 . . . . . . . . . . . . . . . . 100 Melee 376 | . . . . . . 6 136 . . 103 6 63 . . . 4 . . . . 58 . . Knockbacks 32 | . . . . . . . 10 1 . 13 3 4 . . . . . . . . . . 1 Impact 2 | . . . . . . . 1 . . . . . . . . . . . . . . . 1 Kinetic 28 | . . . . . . . 8 1 . 13 2 4 . . . . . . . . . . . Secondary 2 | . . . . . . . 1 . . . 1 . . . . . . . . . . . . Self-Inflicted Damage 89 | . 13 . . . 58 . . . . . . . . . . . . . . . . . 18 Shots 3 | . . . . . 1 . . . . . . . . . . . . . . . . . 2 Rammed 24 | . 7 . . 1 3 . 5 . . . . 1 . . . 1 . . . 1 1 . 4 Targets Rammed 25 | . 7 . . 1 3 . 5 . . . . 1 . . . 1 . . . 1 1 . 5 Kicked . | . . . . . . . . . . . . . . . . . . . . . . . . Crushed 1 | . . . . . . . . . . . . . . . . . . . . . . . 1 Highest Temperature 425 | . 31 24 . 49 71 269 425 262 172 182 78 244 139 72 231 264 264 304 189 189 320 168 198 Average Temperature 68 | . 9 10 . 14 21 59 62 80 95 55 34 89 53 36 93 96 70 105 64 60 88 71 94 Received Heat Transfer 4194 | . 24 . . 120 346 405 921 192 . 474 . 165 42 . 27 9 114 . 27 . 44 . 1284 Effects 6 | . . . . . . 1 2 . . . . . . . . . 3 . . . . . . Energy Bleed 1 | . . . . . . 1 . . . . . . . . . . . . . . . . . Interference 4 | . . . . . . . 1 . . . . . . . . . 3 . . . . . . Short Circuit 1 | . . . . . . . 1 . . . . . . . . . . . . . . . . Siege Activations 3 | . . . . . . . . . . . . . . . . . . . . . 2 . 1 Total Turns 123 | . . . . . . . . . . . . . . . . . . . . . 15 . 108 Longest Duration 108 | . . . . . . . . . . . . . . . . . . . . . 8 . 108 Martial Activations . | . . . . . . . . . . . . . . . . . . . . . . . . Shielding Activations . | . . . . . . . . . . . . . . . . . . . . . . . . Robots Disrupted . | . . . . . . . . . . . . . . . . . . . . . . . . Combat Hostiles . | . . . . . . . . . . . . . . . . . . . . . . . . Robots Corrupted 2 | . . . . . . 1 . . . . . . . . . 1 . . . . . . . Combat Hostiles 1 | . . . . . . 1 . . . . . . . . . . . . . . . . . Parts Fried 8 | . . . . . . 3 . 2 . . . . . . . 1 2 . . . . . . Impact Corruptions 1 | . . . . . . . . . . . . . . . . 1 . . . . . . . Robots Melted . | . . . . . . . . . . . . . . . . . . . . . . . . Combat Hostiles . | . . . . . . . . . . . . . . . . . . . . . . . . Parts Melted 1 | . . . . . . . . . . . . . . . . . . 1 . . . . . Heat Transferred 400 | . . . . . 250 . . . . . . . . . . . 150 . . . . . . Parts Sabotaged 2 | . . . . . . . . . . . . . . . . . . . . . . . 2 Parts Stolen . | . . . . . . . . . . . . . . . . . . . . . . . . Parts Stripped . | . . . . . . . . . . . . . . . . . . . . . . . . Power Chain Reactions . | . . . . . . . . . . . . . . . . . . . . . . . . Alert | -11 -10 -10 -10 -9 -8 -8 -7 -7 -7 -6 -6 -5 -5 -5 -4 -4 -4 -4 -4 -4 -3 -2 -2 ------- Run | Yrd Mat Min Exi Min Mat Gar Fac Low Zio Pro Fac Fac Upp War Pro Fac Ext Cet Arc Hub Res Res Tes Maximum Alert Level 5 | . . . . . 2 4 4 . . . 2 . . . . . 3 2 2 2 2 1 5 Low Security (%) 51 | 100 100 100 . 100 69 7 . . . . . 100 . . . 100 71 . . 7 24 82 . Level 1 9 | . . . . . 21 9 . . . . 44 . . . . . 13 . 93 36 38 17 . Level 2 24 | . . . . . 9 39 61 . . . 55 . . . . . 10 100 6 55 37 . . Level 3 8 | . . . . . . 29 29 . . . . . . . . . 5 . . . . . . Level 4 3 | . . . . . . 15 9 . . . . . . . . . . . . . . . . Level 5 . | . . . . . . . . . . . . . . . . . . . . . . . . High Security . | . . . . . . . . . . . . . . . . . . . . . . . . Max Security 2 | . . . . . . . . . . . . . . . . . . . . . . . 99 Peak Influence 3038 | 10 133 83 . 5 509 1417 1193 . . . 600 166 . . . 136 964 659 407 501 648 344 3038 Initial 743 | . . 12 . . . 146 743 . . . 600 139 . . . . 58 535 232 134 189 344 2 Average 350 | 1 41 22 . . 140 741 681 . . . 440 72 . . . 41 184 596 354 387 361 81 2200 Influence Increases 12618 | 15 378 239 . 5 986 1331 1460 265 . 443 671 598 100 101 150 456 1405 314 202 615 1079 77 1728 Destroy 0b10 Robot/C 6420 | . 220 160 . . 540 480 900 220 . 280 20 320 80 100 120 300 780 160 80 200 440 . 1020 Destroy 0b10 Robot/NC 450 | 15 35 10 . 5 65 15 105 . . 20 15 40 . . . 10 40 10 . 20 30 5 10 Destroy Leader 1128 | . 48 30 . . 104 30 264 30 . 20 12 94 20 . 30 70 96 . . 42 116 2 120 Allied During Kill 1157 | . . 39 . . . 14 . . . 3 . . . 1 . . 319 136 80 260 302 1 2 Trap Triggered on 0b10 20 | . 20 . . . . . . . . . . . . . . . . . . . . . . Successful Hack 229 | . 38 . . . 34 35 61 . . . . 42 . . . 13 6 . . . . . . Disable Machine 330 | . 15 . . . 60 . 15 . . . . 30 . . . 15 60 . 30 45 15 . 45 Anti-Garrison Action 750 | . . . . . . 600 . . . . . . . . . . . . . . 150 . . Destroy Structure 694 | . 2 . . . 33 97 55 . . . 9 72 . . . 48 74 8 12 48 26 9 201 Advance Influence 600 | . . . . . . . . . . . 600 . . . . . . . . . . . . Partial Spotted 45 | . . . . . . 15 . . . . 15 . . . . . 15 . . . . . . Lose Combat Pursuer 795 | . . . . . 150 45 60 15 . 120 . . . . . . 15 . . . . 60 330 Influence Decreases 11178 | 15 346 260 11 5 761 139 1684 848 610 443 386 747 171 166 150 337 567 690 399 638 827 685 293 Entered New Map 3624 | . . 20 11 . . 79 674 442 610 . . 146 51 65 . . 61 422 349 250 172 269 3 Time Decay 5854 | 15 346 230 . 5 421 . 770 386 . 333 286 591 120 21 140 257 486 238 50 198 565 396 . Search Patrol Dispatched 100 | . . . . . . . . . . . 100 . . . . . . . . . . . . Lost Part 610 | . . . . . 40 20 90 20 . 50 . 10 . . 10 80 . 10 . . 10 . 270 Lost Ally 390 | . . 10 . . . 40 . . . 60 . . . 80 . . 20 20 . 40 80 20 20 Purge Threat 600 | . . . . . 300 . 150 . . . . . . . . . . . . 150 . . . Squads Dispatched 92 | . 1 . . . 5 . 27 . . 1 4 8 . . . 4 2 . . 4 5 1 30 Investigation 8 | . 1 . . . 2 . 2 . . . . 1 . . . . . . . . 2 . . Extermination 19 | . . . . . . . 10 . . . 1 4 . . . 3 . . . 1 . . . Reinforcement 23 | . . . . . 2 . 5 . . . 3 3 . . . 1 2 . . 3 3 1 . Assault 35 | . . . . . . . 4 . . 1 . . . . . . . . . . . . 30 Garrison 7 | . . . . . 1 . 6 . . . . . . . . . . . . . . . . Intercept . | . . . . . . . . . . . . . . . . . . . . . . . . Searches Triggered 1 | . . . . . . . . . . . 1 . . . . . . . . . . . . Construction Impeded 1 | . . . . . . . 1 . . . . . . . . . . . . . . . . Haulers Reinforced 2 | . . . . . . . 1 . . . . . . . . . . . . . 1 . . Active Scanning Responses . | . . . . . . . . . . . . . . . . . . . . . . . . Cargo Convoy Interrupts . | . . . . . . . . . . . . . . . . . . . . . . . . Stealth | -11 -10 -10 -10 -9 -8 -8 -7 -7 -7 -6 -6 -5 -5 -5 -4 -4 -4 -4 -4 -4 -3 -2 -2 --------- Run | Yrd Mat Min Exi Min Mat Gar Fac Low Zio Pro Fac Fac Upp War Pro Fac Ext Cet Arc Hub Res Res Tes Distress Signals 28 | . . . . . 4 1 4 . . 1 . 1 . . . 1 . 2 . 1 2 10 1 Communications Jammed 22 | . . . . . . . . . . . . . . . . 1 4 . . 2 . . 15 Distress Signals 21 | . . . . . . . . . . . . . . . . 1 4 . . 1 . . 15 Times Spotted 531 | . 19 6 . 20 42 27 78 12 . 25 3 24 4 13 6 19 36 10 3 8 36 11 129 Peak Tracking Total 22 | . 3 3 . 5 6 6 6 4 . 7 1 3 2 6 2 6 5 5 1 4 10 12 22 Tactical Retreats 30 | . . . . 1 10 2 3 1 . 3 . . . . . . 1 . . . . 3 6 Traps | -11 -10 -10 -10 -9 -8 -8 -7 -7 -7 -6 -6 -5 -5 -5 -4 -4 -4 -4 -4 -4 -3 -2 -2 ------- Run | Yrd Mat Min Exi Min Mat Gar Fac Low Zio Pro Fac Fac Upp War Pro Fac Ext Cet Arc Hub Res Res Tes Traps Triggered 15 | . . . . . 2 8 3 . . . . 1 . . . . 1 . . . . . . Indirectly 3 | . . . . . . 3 . . . . . . . . . . . . . . . . . Trap Hack Attempts 123 | . 99 . . . . 9 15 . . . . . . . . . . . . . . . . Triggered . | . . . . . . . . . . . . . . . . . . . . . . . . Disarmed 6 | . 4 . . . . 1 1 . . . . . . . . . . . . . . . . Reprogrammed 9 | . 7 . . . . . 2 . . . . . . . . . . . . . . . . Reused 5 | . 2 . . 3 . . . . . . . . . . . . . . . . . . . Traps Extracted . | . . . . . . . . . . . . . . . . . . . . . . . . Installed 4 | . . . . 3 . . . . . . 1 . . . . . . . . . . . . Triggered 2 | . 2 . . . . . . . . . . . . . . . . . . . . . . Most Traps Carried 3 | . . . . . . . . . . 3 3 . . . . . . . . . . . . Machines | -11 -10 -10 -10 -9 -8 -8 -7 -7 -7 -6 -6 -5 -5 -5 -4 -4 -4 -4 -4 -4 -3 -2 -2 ---------- Run | Yrd Mat Min Exi Min Mat Gar Fac Low Zio Pro Fac Fac Upp War Pro Fac Ext Cet Arc Hub Res Res Tes Machines Disabled 32 | . 1 . . . 4 6 1 . . 1 . 2 . 2 . 1 4 . 2 3 2 . 3 Max in Single Turn 3 | . 1 . . . 3 1 1 . . 1 . 1 . 1 . 1 3 . 1 2 1 . 1 Garrison Access 1 | . . . . . . . . . . . . . . . . . . . . . 1 . . Garrison Relay 6 | . . . . . . 6 . . . . . . . . . . . . . . . . . Energy Cycler 3 | . . . . . . . . . . . . . . . . . 3 . . . . . . Machines Repaired . | . . . . . . . . . . . . . . . . . . . . . . . . Machines Dismantled . | . . . . . . . . . . . . . . . . . . . . . . . . Machines Sabotaged . | . . . . . . . . . . . . . . . . . . . . . . . . Overloaded Fab Kills . | . . . . . . . . . . . . . . . . . . . . . . . . Hacking | -11 -10 -10 -10 -9 -8 -8 -7 -7 -7 -6 -6 -5 -5 -5 -4 -4 -4 -4 -4 -4 -3 -2 -2 --------- Run | Yrd Mat Min Exi Min Mat Gar Fac Low Zio Pro Fac Fac Upp War Pro Fac Ext Cet Arc Hub Res Res Tes Machines Accessed 62 | . 10 . 2 1 9 4 13 . . . 3 6 . 6 . 3 1 1 . . 3 . . Terminals 35 | . 8 . . . 7 4 8 . . . 1 4 . . . 1 1 1 . . . . . Fabricators 7 | . . . . . . . 3 . . . 1 1 . . . 1 . . . . 1 . . Repair Stations 1 | . 1 . . . . . . . . . . . . . . . . . . . . . . Recycling Units 1 | . 1 . . . . . . . . . . . . . . . . . . . . . . Scanalyzers 8 | . . . . . 1 . 2 . . . 1 1 . . . 1 . . . . 2 . . Garrison Access 1 | . . . . . 1 . . . . . . . . . . . . . . . . . . Total Hacks 160 | . 48 . 5 1 23 5 27 . . . 8 12 . 14 . 8 1 1 . . 7 . . Successful 93 | . 33 . 5 1 16 3 9 . . . 2 5 . 14 . 4 1 . . . . . . Failed 65 | . 15 . . . 7 2 18 . . . 6 6 . . . 3 . 1 . . 7 . . Catastrophic 13 | . . . . . . . 3 . . . 3 4 . . . 1 . . . . 2 . . Database Lockouts 2 | . . . . . . . . . . . . 1 . . . 1 . . . . . . . Manual 85 | . 35 . 1 . 14 1 14 . . . 2 10 . . . 4 . 1 . . 3 . . Terminals 96 | . 38 . . . 19 5 18 . . . 4 9 . . . 1 1 1 . . . . . Fabricators 15 | . . . . . . . 5 . . . 2 1 . . . 4 . . . . 3 . . Repair Stations 6 | . 6 . . . . . . . . . . . . . . . . . . . . . . Recycling Units 4 | . 4 . . . . . . . . . . . . . . . . . . . . . . Scanalyzers 18 | . . . . . 3 . 4 . . . 2 2 . . . 3 . . . . 4 . . Garrison Access 1 | . . . . . 1 . . . . . . . . . . . . . . . . . . Terminal Hacks 49 | . 14 . 5 1 5 3 3 . . . 1 1 . 14 . 1 1 . . . . . . Record 18 | . 1 . 4 . . . . . . . . . . 13 . . . . . . . . . Part Schematic 1 | . 1 . . . . . . . . . . . . . . . . . . . . . . Robot Analysis 3 | . 3 . . . . . . . . . . . . . . . . . . . . . . Prototype ID Bank 9 | . 6 . . . 1 . 1 . . . 1 . . . . . . . . . . . . Open Door 5 | . . . . 1 . 1 . . . . . . . 1 . 1 1 . . . . . . Branch Access Points 1 | . 1 . . . . . . . . . . . . . . . . . . . . . . Emergency Access Points 1 | . . . . . . 1 . . . . . . . . . . . . . . . . . Terminal Index 1 | . 1 . . . . . . . . . . . . . . . . . . . . . . Alert Level 4 | . . . . . 2 . 1 . . . . 1 . . . . . . . . . . . Unreport Threat 3 | . . . . . 2 . 1 . . . . . . . . . . . . . . . . Zone Layout 1 | . 1 . . . . . . . . . . . . . . . . . . . . . . Patrol Navigation 1 | . . . . . . 1 . . . . . . . . . . . . . . . . . Proto ID Catalog 1 | . . . 1 . . . . . . . . . . . . . . . . . . . . Fabricator Hacks 1 | . . . . . . . 1 . . . . . . . . . . . . . . . . Build 1 | . . . . . . . 1 . . . . . . . . . . . . . . . . Repair Station Hacks 6 | . 6 . . . . . . . . . . . . . . . . . . . . . . Scan Component 3 | . 3 . . . . . . . . . . . . . . . . . . . . . . Repair 3 | . 3 . . . . . . . . . . . . . . . . . . . . . . Recycling Unit Hacks 2 | . 2 . . . . . . . . . . . . . . . . . . . . . . Retrieve Matter 1 | . 1 . . . . . . . . . . . . . . . . . . . . . . Retrieve Components 1 | . 1 . . . . . . . . . . . . . . . . . . . . . . Scanalyzer 11 | . . . . . 3 . 4 . . . 1 1 . . . 2 . . . . . . . Insert Component 1 | . . . . . . . 1 . . . . . . . . . . . . . . . . Retrieve Study 10 | . . . . . 3 . 3 . . . 1 1 . . . 2 . . . . . . . Garrison Access Hacks 1 | . . . . . 1 . . . . . . . . . . . . . . . . . . Unlock Access 1 | . . . . . 1 . . . . . . . . . . . . . . . . . . Unauthorized Hacks 23 | . 11 . . . 7 . 1 . . . . 3 . . . 1 . . . . . . . Terminals 20 | . 10 . . . 7 . . . . . . 3 . . . . . . . . . . . Assimilate 2 | . 1 . . . . . . . . . . 1 . . . . . . . . . . . Botnet 6 | . 3 . . . 1 . . . . . . 2 . . . . . . . . . . . Operators 1 | . 1 . . . . . . . . . . . . . . . . . . . . . . Skim 11 | . 5 . . . 6 . . . . . . . . . . . . . . . . . . Fabricators 2 | . . . . . . . 1 . . . . . . . . 1 . . . . . . . Liberate 1 | . . . . . . . . . . . . . . . . 1 . . . . . . . Fabnet 1 | . . . . . . . 1 . . . . . . . . . . . . . . . . Repair Stations . | . . . . . . . . . . . . . . . . . . . . . . . . Recycling Units 1 | . 1 . . . . . . . . . . . . . . . . . . . . . . Recyclers 1 | . 1 . . . . . . . . . . . . . . . . . . . . . . Scanalyzers . | . . . . . . . . . . . . . . . . . . . . . . . . Garrison Access . | . . . . . . . . . . . . . . . . . . . . . . . . Data Cores Recovered 2 | . . . . . . . . . . . . . . . . . . . . 2 . . . Used . | . . . . . . . . . . . . . . . . . . . . . . . . Hacking Detections 51 | . 10 . . . 9 4 13 . . . 3 6 . . . 2 . 1 . . 3 . . Full Trace Events 3 | . 1 . . . . . 1 . . . . 1 . . . . . . . . . . . Feedback Events . | . . . . . . . . . . . . . . . . . . . . . . . . Feedback Blocked . | . . . . . . . . . . . . . . . . . . . . . . . . Robot Schematics Acquired 3 | . . . . . . . . . 3 . . . . . . . . . . . . . . Robots Built . | . . . . . . . . . . . . . . . . . . . . . . . . Authchips . | . . . . . . . . . . . . . . . . . . . . . . . . Time . | . . . . . . . . . . . . . . . . . . . . . . . . Total Robot Build Rating . | . . . . . . . . . . . . . . . . . . . . . . . . Part Schematics Acquired 16 | . 1 . . . . . . . 15 . . . . . . . . . . . . . . Parts Built 2 | . . . . . . . 2 . . . . . . . . . . . . . . . . Authchips . | . . . . . . . . . . . . . . . . . . . . . . . . Time 95 | . . . . . . . 95 . . . . . . . . . . . . . . . . Total Part Build Rating 10 | . . . . . . . 10 . . . . . . . . . . . . . . . . Part Studies Acquired 9 | . . . . . 2 . 3 . . . 1 1 . . . 2 . . . . . . . Parts Repaired 3 | . 3 . . . . . . . . . . . . . . . . . . . . . . Time 84 | . 84 . . . . . . . . . . . . . . . . . . . . . . Parts Recycled . | . . . . . . . . . . . . . . . . . . . . . . . . Recycled Matter . | . . . . . . . . . . . . . . . . . . . . . . . . Retrieved Matter . | . . . . . . . . . . . . . . . . . . . . . . . . Retrieved Components 4 | . 4 . . . . . . . . . . . . . . . . . . . . . . Parts Scanalyzed . | . . . . . . . . . . . . . . . . . . . . . . . . Part Schematics Acquired . | . . . . . . . . . . . . . . . . . . . . . . . . Parts Damaged . | . . . . . . . . . . . . . . . . . . . . . . . . Bothacking | -11 -10 -10 -10 -9 -8 -8 -7 -7 -7 -6 -6 -5 -5 -5 -4 -4 -4 -4 -4 -4 -3 -2 -2 ------------ Run | Yrd Mat Min Exi Min Mat Gar Fac Low Zio Pro Fac Fac Upp War Pro Fac Ext Cet Arc Hub Res Res Tes Used RIF Installer . | . . . . . . . . . . . . . . . . . . . . . . . . Robots Hacked 5 | . . . 4 . . . . . . 1 . . . . . . . . . . . . . Non-combat 3 | . . . 3 . . . . . . . . . . . . . . . . . . . . Combat 2 | . . . 1 . . . . . . 1 . . . . . . . . . . . . . Robot Hacks Applied 4 | . . . 4 . . . . . . . . . . . . . . . . . . . . parse_system 4 | . . . 4 . . . . . . . . . . . . . . . . . . . . Relay Couplers Released 34 | . . . . . . 32 . . . . . . . . . . . . . . 2 . . Machine Destruction 30 | . . . . . . 28 . . . . . . . . . . . . . . 2 . . Programmers 4 | . . . . . . 4 . . . . . . . . . . . . . . . . . Fabnet Peak Effective % 3 | . . . . . . . . . . 3 3 1 1 1 . . . . . . . . . Autooverrided 1 | . . . . . . . . . . 1 . . . . . . . . . . . . . Robots Rewired 15 | . . . . . . 3 . . . 2 . . . 4 . . 6 . . . . . . Allies Hacked . | . . . . . . . . . . . . . . . . . . . . . . . . Hacks Repelled . | . . . . . . . . . . . . . . . . . . . . . . . . Allies | -11 -10 -10 -10 -9 -8 -8 -7 -7 -7 -6 -6 -5 -5 -5 -4 -4 -4 -4 -4 -4 -3 -2 -2 -------- Run | Yrd Mat Min Exi Min Mat Gar Fac Low Zio Pro Fac Fac Upp War Pro Fac Ext Cet Arc Hub Res Res Tes Total Allies 31 | . 1 5 . 1 . 3 . . . 3 . 1 . 4 . . 8 5 . . . . . Largest Group 10 | . 1 5 5 4 . 3 . . . 2 . 1 . 4 . . 6 10 8 8 6 1 . Highest-Rated Group 767 | . 10 86 86 71 . 70 . . . 50 . 10 . 177 . . 347 767 521 521 329 84 . Highest-Rated Ally 159 | . 10 31 31 31 . 25 . . . 30 . 10 . 49 . . 159 159 96 96 96 84 . Initial Warlord ECA Mod 7 | . . . . . . . 7 7 7 6 6 4 3 3 2 2 2 2 2 2 1 . . Warlord Squad Rendezvous 2 | . . . . . . . . . . . 1 1 . . . . . . . . . . . Muscle 1 | . . . . . . . . . . . 1 . . . . . . . . . . . . Chimera 1 | . . . . . . . . . . . . 1 . . . . . . . . . . . Total Orders 11 | . . . . 1 . . . . . . . 1 . 1 . 1 3 . . 3 1 . . STAY 1 | . . . . . . . . . . . . . . 1 . . . . . . . . . RETURN 10 | . . . . 1 . . . . . . . 1 . . . 1 3 . . 3 1 . . Ally Attacks 258 | . . 13 . 50 . 14 . . . 8 . . . 22 . . 40 34 13 45 15 . 4 Total Damage 6894 | . . 138 . 523 . 262 . . . 193 . . . 1128 . . 1316 1015 408 1433 455 . 23 Kills 50 | . . 4 . 10 . 1 . . . 1 . . . 5 . . 8 6 1 7 6 . 1 Allies Corrupted 2 | . . . . . . . . . . . . . . 2 . . . . . . . . . Allies Melted 5 | . . . . . . . . . . . . . . 2 . . 1 . . . . 2 . Intel | -11 -10 -10 -10 -9 -8 -8 -7 -7 -7 -6 -6 -5 -5 -5 -4 -4 -4 -4 -4 -4 -3 -2 -2 ------- Run | Yrd Mat Min Exi Min Mat Gar Fac Low Zio Pro Fac Fac Upp War Pro Fac Ext Cet Arc Hub Res Res Tes Active Infowar (turns) 28106 | 18 627 754 . 246 1730 2121 5275 903 1564 1019 634 2215 255 1785 968 1395 1608 512 108 416 1683 1671 599 Optics 25078 | . . . . . 347 2121 5275 903 1564 1019 634 2215 255 1785 968 1395 1608 512 108 416 1683 1671 599 IFF 2 | . . . . . . . . . . . 2 . . . . . . . . . . . . Terrain 1202 | . . . . . 1202 . . . . . . . . . . . . . . . . . . Traps 7616 | . . . . . 181 6 3166 . . . . . . . . 1301 1608 512 108 416 318 . . Seismic 1645 | 18 627 754 . 246 . . . . . . . . . . . . . . . . . . . Jamming 8520 | . . . . . . . 94 . . . 510 1845 255 864 . 1361 1466 8 . 416 1481 . 220 Robot Analysis Total 3 | . 3 . . . . . . . . . . . . . . . . . . . . . . Derelict Logs Recovered 8 | . . 1 . 2 . . . 2 1 . . . 1 . 1 . . . . . . . . Drone Launches 14 | . . . . 1 . . . . . . . 1 . . . 1 3 . . 3 1 . 4 Drone Recoveries 12 | . . . . 1 . . . . . . . 1 . . . 1 3 . . 3 1 . 2 Exploration | -11 -10 -10 -10 -9 -8 -8 -7 -7 -7 -6 -6 -5 -5 -5 -4 -4 -4 -4 -4 -4 -3 -2 -2 ------------- Run | Yrd Mat Min Exi Min Mat Gar Fac Low Zio Pro Fac Fac Upp War Pro Fac Ext Cet Arc Hub Res Res Tes Turns Passed 33211 | 115 1964 1083 906 1500 2912 2121 5275 903 1564 1019 634 2215 255 1785 968 1395 1608 512 108 416 1683 1671 599 Spaces Moved 16189 | 46 780 538 373 568 1244 924 2712 523 967 523 350 1155 133 836 562 629 759 220 52 179 795 1038 283 Core 115 | 3 . . . . . . . . . . . . . . . . . . . . . . 112 Treads 14448 | 43 298 267 373 568 1244 924 2629 523 967 523 350 1155 133 836 562 619 134 69 52 179 795 1038 167 Legs 10 | . . . . . . . . . . . . . . . . 10 . . . . . . . Wheels 1616 | . 482 271 . . . . 83 . . . . . . . . . 625 151 . . . . 4 Hover . | . . . . . . . . . . . . . . . . . . . . . . . . Flight . | . . . . . . . . . . . . . . . . . . . . . . . . Fastest Speed 50 | 50 145 145 240 240 150 150 130 156 160 160 160 160 160 160 160 162 145 145 160 160 160 155 50 Average Speed 169 | 152 150 192 240 240 174 178 154 157 160 160 160 160 166 189 161 189 162 149 160 160 185 155 112 Slowest Speed 320 | 160 160 240 240 240 240 235 320 160 160 160 160 160 240 240 240 265 243 160 160 160 240 240 160 Overloaded Moves . | . . . . . . . . . . . . . . . . . . . . . . . . Propulsion Burnouts . | . . . . . . . . . . . . . . . . . . . . . . . . Robots Hopped . | . . . . . . . . . . . . . . . . . . . . . . . . Potential Cave-ins 14 | . . . . . . . . . . . . 2 . . . . . . . . . 2 10 Cave-ins Triggered . | . . . . . . . . . . . . . . . . . . . . . . . . Exploration Rate (%) 57 | 4 97 98 72 90 60 81 59 66 89 66 14 30 33 90 65 13 78 71 78 30 24 32 38 Regions Visited 23 Branch Regions 14 Pre-discovered Areas 5 | . . 2 1 . . . . 1 . . . . . 1 . . . . . . . . . Known Exits Taken 11 | . 1 1 1 . 1 . 1 . . . 1 1 . . 1 . 1 . . 1 1 . . Unknown Exits Taken 11 | 1 . . . 1 . . . 1 1 1 . . 1 1 . 1 . 1 1 . . 1 . Scrap Searched 13 | . . 2 . 1 . . . 1 2 2 . . 1 . 4 . . . . . . . . Spaces Dug 96 | . . . . . 22 7 45 . . . 4 8 . . . 2 . . . 5 . 3 . Terrain Destroyed 392 | . . . . . 35 7 49 6 . 9 9 39 15 2 13 29 31 4 6 25 2 3 108 Melee 69 | . . . . . 6 7 41 . . . 4 6 . . . 2 . . . . . 3 . Projectile 189 | . . . . . . . 8 6 . 9 5 33 15 2 13 27 22 4 6 25 1 . 13 AOE 132 | . . . . . 29 . . . . . . . . . . . 8 . . . . . 95 Terrain Rammed . | . . . . . . . . . . . . . . . . . . . . . . . . Walls Destroyed . | . . . . . . . . . . . . . . . . . . . . . . . . Machines Disabled . | . . . . . . . . . . . . . . . . . . . . . . . . Actions | -11 -10 -10 -10 -9 -8 -8 -7 -7 -7 -6 -6 -5 -5 -5 -4 -4 -4 -4 -4 -4 -3 -2 -2 --------- Run | Yrd Mat Min Exi Min Mat Gar Fac Low Zio Pro Fac Fac Upp War Pro Fac Ext Cet Arc Hub Res Res Tes Total 20316 | 71 1500 573 382 669 1836 1244 3441 561 983 607 405 1408 143 1019 590 744 998 374 69 273 916 1081 429 Wait 2230 | 1 523 20 2 61 439 120 363 6 1 11 14 155 . 120 9 43 90 104 8 72 46 15 7 Move 16165 | 45 779 537 372 567 1244 921 2711 522 966 522 349 1154 132 835 561 628 758 219 51 178 794 1037 283 Hop . | . . . . . . . . . . . . . . . . . . . . . . . . Pick Up 171 | 5 23 2 1 5 16 6 30 4 2 4 6 10 . 5 1 9 11 10 3 . 10 5 3 Fast Attach 46 | 8 3 . . . . 2 9 . 3 . 2 . . . 2 5 2 2 . 1 1 1 5 Attach 68 | . . . . 2 10 2 11 2 . 4 1 2 . 1 1 7 1 2 . . 2 2 18 Detach 12 | 1 . . . . . . 1 . . . . . . 1 . . . . . . . 1 8 Swap 322 | 1 18 3 2 4 28 34 77 4 4 3 13 20 . 18 2 12 19 13 . 9 20 10 8 Drop 161 | 1 10 2 1 4 11 13 30 2 6 . 8 10 . 8 2 4 16 12 3 . 7 4 7 Fire 718 | 9 38 9 . 22 79 58 143 21 . 51 6 45 11 5 12 33 56 12 4 12 29 3 60 Melee 141 | . . . 4 . 6 49 46 . 1 6 5 11 . 1 . 2 . . . . 6 3 1 Ram 2 | . 2 . . . . . . . . . . . . . . . . . . . . . . Kick . | . . . . . . . . . . . . . . . . . . . . . . . . Crush 23 | . 5 . . 1 3 . 5 . . . . 1 . . . 1 . . . 1 1 . 5 Escape Stasis 39 | . . . . . . 9 . . . . . . . . . . 8 . . . . . 22 Rewire 91 | . . . . . . 21 . . . 6 . . . 25 . . 37 . . . . . 2 Trap 127 | . 99 . . 3 . 9 15 . . . 1 . . . . . . . . . . . . Miscellaneous . | . . . . . . . . . . . . . . . . . . . . . . . . Route ------- -11/Scrapyard -10/Materials (discovered 6 exits: [*Mat x3] / *Min x2 / Sub) -10/Mines (discovered 4 exits: [*Mat x2] / *Exi / *Sub) -10/Exiles (discovered 2 exits: *Min x2) -9/Mines -8/Materials (discovered 6 exits: *Fac x3 / Sto x2 / Gar) -8/Garrison (discovered 4 exits: *Fac x3 / [*Mat]) -7/Factory (discovered 3 exits: *Fac x2 / *Low) -7/Lower Caves (discovered 2 exits: *Low / [*Zio]) -7/Zion -6/Proximity Caves -6/Factory (discovered 4 exits: *Fac x3 / Low) -5/Factory (discovered 6 exits: Fac x4 / *Upp x2) -5/Upper Caves -5/Warlord -4/Proximity Caves -4/Factory -4/Extension (discovered 3 exits: *Res x2 / *Cet) -4/Cetus (discovered 2 exits: *Res / *Arc) -4/Archives (discovered 2 exits: *Res / [*Hub]) -4/Hub_04(d) -3/Research (discovered 4 exits: *Res x2 / *Qua x2) -2/Research (discovered 2 exits: [*Tes x2]) -2/Testing History --------- Turn | Location | Event 12 | -11/Scrapyard | Discovered new exit (range 15) 116 | -11/Scrapyard | Entered Materials 318 | -10/Materials | Build established: Mutant 587 | -10/Materials | Discovered new exit (range 4) 748 | -10/Materials | Discovered new exit (range 5) 810 | -10/Materials | Discovered new exit (range 9) 968 | -10/Materials | Discovered new exit (range 11) 1287 | -10/Materials | Discovered new exit (range 7) 1287 | -10/Materials | Identified exit to Mines 1419 | -10/Materials | Learned 2 Storage zone layouts 1469 | -10/Materials | Learned location of 2 exits from Mines 1511 | -10/Materials | Learned location of 2 exits from Subcaves 1563 | -10/Materials | Identified exit to Subcaves 1563 | -10/Materials | Learned location of 1 exit from Materials 1573 | -10/Materials | Learned 2 Storage zone layouts 1595 | -10/Materials | Learned location of 2 exits from Materials 1673 | -10/Materials | Learned Storage garrison access intel 1993 | -10/Materials | Repaired Autogun 2020 | -10/Materials | Repaired Ion Engine 2048 | -10/Materials | Repaired Com. Wheel 2080 | -10/Materials | Entered Mines 2080 | -10/Mines | Accompanied by 1 ally 2081 | -10/Mines | Identified exit to Exiles 2199 | -10/Mines | Learned location of Storage (-8) 2494 | -10/Mines | Found DCF Scrap (11 items) 2562 | -10/Mines | Learned location of Zion (-7) 2648 | -10/Mines | Discovered new exit (range 12) 2687 | -10/Mines | Assisted by bots powering up and referring to "LRC-V3" 2732 | -10/Mines | Discovered new exit (range 8) 3135 | -10/Mines | Deemed a non-threat by the Exiles lab entrance 3163 | -10/Mines | Entered Exiles 3163 | -10/Exiles | Accompanied by 5 allies 3164 | -10/Exiles | Identified exit to Mines 3193 | -10/Exiles | Led the pair of lost Derelicts to a safe place 3259 | -10/Exiles | Met 8R-AWN 3298 | -10/Exiles | Met EX-HEX 3372 | -10/Exiles | Met EX-BIN 3399 | -10/Exiles | Aligned with FarCom system 3401 | -10/Exiles | Given EX-Vault access code 3456 | -10/Exiles | Opened EX-Vault 3481 | -10/Exiles | Found Longsword +1 3530 | -10/Exiles | Warned to stay clear of 0b10 Research branches 3773 | -10/Exiles | Met EX-DEC 4069 | -10/Exiles | Left Exiles lab with Longsword +1 4069 | -10/Exiles | Entered Mines 4069 | -9/Mines | Accompanied by 3 allies 4086 | -9/Mines | Assembled infested the area 4091 | -9/Mines | Assisted by a Guerilla fighting off Assembled 4195 | -9/Mines | Received a Mining Laser from a helpful Derelict 4295 | -9/Mines | Found a hidden stash of uninstalled traps 4340 | -9/Mines | Lost 3 allies 4507 | -9/Mines | Learned Materials interactive machine intel 4849 | -9/Mines | Found the Drone Emporium 4860 | -9/Mines | Found Prototype Device 4860 | -9/Mines | Identified Splice Drone Bay 5253 | -9/Mines | Discovered new exit (range 7) 5569 | -9/Mines | Entered Materials 5569 | -8/Materials | Evolved 4 slots: Propulsion x1, Utility x2, Weapon x1 5570 | -8/Materials | Identified exit to Factory 5570 | -8/Materials | Identified exit to Storage 5572 | -8/Materials | Loaded intel: 19 interactive machine locations 5871 | -8/Materials | Build established: Skirmisher 7075 | -8/Materials | Build established: Tank 7136 | -8/Materials | Garrison activated, responded to threat 7944 | -8/Materials | Build established: Skirmisher 8197 | -8/Materials | Learned location of 2 exits from Lower Caves 8250 | -8/Materials | Learned location of 1 exit from Storage 8292 | -8/Materials | Learned Storage security intel 8325 | -8/Materials | Learned Storage stockpile data 8346 | -8/Materials | Learned location of 1 exit from Extension 8358 | -8/Materials | Learned Factory stockpile data 8360 | -8/Materials | Learned 4 Factory zone layouts 8393 | -8/Materials | Learned Factory security intel 8423 | -8/Materials | Learned location of 1 exit from Recycling 8481 | -8/Materials | Identified exit to Garrison 8481 | -8/Materials | Entered Garrison 8617 | -8/Garrison | Triggered checkpoint 8633 | -8/Garrison | Garrison Relay disabled 8801 | -8/Garrison | Triggered checkpoint 8850 | -8/Garrison | Discovered new exit (range 5) 8858 | -8/Garrison | Destroyed 7 combat bots 8937 | -8/Garrison | Triggered checkpoint 8987 | -8/Garrison | Discovered exit to Factory (range 13) 9165 | -8/Garrison | Triggered checkpoint 9202 | -8/Garrison | Garrison Relay disabled 9302 | -8/Garrison | Attempted to access garrison exit controls, blocked by remote lockdown 9405 | -8/Garrison | Triggered checkpoint 9552 | -8/Garrison | Discovered exit to Factory (range 12) 9631 | -8/Garrison | Triggered checkpoint 9714 | -8/Garrison | Garrison Relay disabled 9854 | -8/Garrison | Garrison Relay disabled 10018 | -8/Garrison | Attempted to access garrison exit controls, blocked by remote lockdown 10095 | -8/Garrison | Triggered checkpoint 10195 | -8/Garrison | Triggered checkpoint 10251 | -8/Garrison | Triggered checkpoint 10280 | -8/Garrison | Garrison Relay disabled 10368 | -8/Garrison | Garrison Relay disabled 10578 | -8/Garrison | Discovered exit to Factory (range 11) 10602 | -8/Garrison | Entered Factory 10602 | -7/Factory | Evolved 2 slots: Propulsion x1, Utility x1 10603 | -7/Factory | Identified exit to Lower Caves 10919 | -7/Factory | Build established: Scavenger-Assassin 11550 | -7/Factory | Garrison activated, responded to threat 11838 | -7/Factory | Build established: Scavenger-Skirmisher 11852 | -7/Factory | Garrison activated, responded to threat 11922 | -7/Factory | Discovered new exit (range 8) 12152 | -7/Factory | Lost 3 parts (1p2w) 13002 | -7/Factory | First assault squad dispatched 13055 | -7/Factory | Fabricated Thermal Shield? 15684 | -7/Factory | Discovered new exit (range 4) 15791 | -7/Factory | Core integrity fell below 50% 15877 | -7/Factory | Entered Lower Caves 15878 | -7/Lower Caves | Identified exit to Lower Caves 15893 | -7/Lower Caves | Attracted the attention of an 0b10 checkpoint 15918 | -7/Lower Caves | Met a Warlord Commander 15919 | -7/Lower Caves | Learned location of Warlord (-5) 15920 | -7/Lower Caves | Warlord Commander delivered Encrypted Comm Array 15920 | -7/Lower Caves | Found Encrypted Comm Array 16101 | -7/Lower Caves | Build established: Gunner 16292 | -7/Lower Caves | Found DCF Scrap (13 items) 16513 | -7/Lower Caves | Learned Factory trap positions 16688 | -7/Lower Caves | A Derelict revealed a hidden shortcut to a safe place 16690 | -7/Lower Caves | Spotted B-75 Beast 16708 | -7/Lower Caves | Destroyed B-75 Beast 16748 | -7/Lower Caves | Learned 8 Factory zone layouts 16780 | -7/Lower Caves | Entered Zion 16836 | -7/Zion | System corruption cleaned by Quarantine Array 16911 | -7/Zion | Discovered new exit (range 14) 17225 | -7/Zion | Given A8's code to call for help 17300 | -7/Zion | Given the Hacking Drone Bay 17300 | -7/Zion | Found Prototype Device 17450 | -7/Zion | Learned 12 Factory zone layouts 17546 | -7/Zion | Visited the Megawrench Repair Shop 17546 | -7/Zion | Megawrench repaired 9 parts 18008 | -7/Zion | Rebuked by Imprinter 18053 | -7/Zion | Build established: Mutant 18344 | -7/Zion | Entered Proximity Caves 18347 | -6/Proximity Caves | Spotter reported a threat 18347 | -6/Proximity Caves | Spotter reported a threat 18591 | -6/Proximity Caves | Spotter reported a threat 18655 | -6/Proximity Caves | Build established: Gunner 18664 | -6/Proximity Caves | Attracted the attention of an 0b10 outpost 18824 | -6/Proximity Caves | Spotter reported a threat 18856 | -6/Proximity Caves | Lost 3 allies 18892 | -6/Proximity Caves | Lost 4 parts (2n2w) 19052 | -6/Proximity Caves | Spotted B-75 Beast 19127 | -6/Proximity Caves | Build established: Mutant 19237 | -6/Proximity Caves | Discovered new exit (range 10) 19363 | -6/Proximity Caves | Entered Factory 19363 | -6/Factory | Evolved 2 slots: Utility x1, Weapon x1 19364 | -6/Factory | Identified exit to Factory 19364 | -6/Factory | Identified exit to Lower Caves 19364 | -6/Factory | Identified Hacking Drone Bay 19365 | -6/Factory | Loaded intel: 101 trap records 19713 | -6/Factory | Search patrols dispatched 19745 | -6/Factory | Joined by Warlord Muscle squad 19997 | -6/Factory | Entered another Factory area 19997 | -5/Factory | Evolved 2 slots: Utility x2 20037 | -5/Factory | Build established: Gunner 20181 | -5/Factory | Central database locked down 21333 | -5/Factory | Discovered new exit (range 9) 21637 | -5/Factory | Identified exit to Upper Caves 21752 | -5/Factory | Identified exit to Factory 21773 | -5/Factory | Joined by Warlord Chimera squad 21902 | -5/Factory | Build established: Scavenger-Gunner 22212 | -5/Factory | Entered Upper Caves 22418 | -5/Upper Caves | Learned Factory emergency access door positions 22465 | -5/Upper Caves | A Derelict revealed a hidden shortcut to "reach the base" 22467 | -5/Upper Caves | Entered Warlord 22539 | -5/Warlord | Discovered new exit (range 8) 23244 | -5/Warlord | Visited the Vortex Lab 23252 | -5/Warlord | Found Prototype Energy Gun 23253 | -5/Warlord | Identified Vortex Rail 23257 | -5/Warlord | Warlord's base attacked by MAIN.C 23326 | -5/Warlord | Found Exp. Core Analyzer 23339 | -5/Warlord | Found Prototype Device 23339 | -5/Warlord | Identified Exp. Phase Shifter 23461 | -5/Warlord | Learned 4 Access zone layouts 23461 | -5/Warlord | Learned location of Quarantine (-3) 23461 | -5/Warlord | Learned Research stockpile data 23463 | -5/Warlord | Learned Research repair station intel 23505 | -5/Warlord | Met Warlord 23607 | -5/Warlord | Warlord forces counterattacked 23932 | -5/Warlord | Warlord base infiltrated, sounded retreat 23962 | -5/Warlord | Lost 3 allies 24009 | -5/Warlord | Spotted Striker 24024 | -5/Warlord | Spotted Striker 24028 | -5/Warlord | Spotted Striker 24084 | -5/Warlord | Spotted Striker 24092 | -5/Warlord | Spotted Striker 24093 | -5/Warlord | Spotted Striker 24158 | -5/Warlord | Spotted Striker 24196 | -5/Warlord | Lost 3 allies 24252 | -5/Warlord | Entered Proximity Caves 24300 | -4/Proximity Caves | Lost 3 allies 24416 | -4/Proximity Caves | Attracted the attention of an 0b10 checkpoint 24560 | -4/Proximity Caves | Spotted B-86 Titan 24574 | -4/Proximity Caves | Destroyed B-86 Titan 24773 | -4/Proximity Caves | Discovered exit to Factory (range 8) 25220 | -4/Proximity Caves | Entered Factory 25220 | -4/Factory | Evolved 2 slots: Power x1, Utility x1 25495 | -4/Factory | Spotted B-86 Titan 26039 | -4/Factory | Lost 6 parts (2p3n1w) 26265 | -4/Factory | Central database locked down 26543 | -4/Factory | Discovered new exit (range 10) 26615 | -4/Factory | Entered Extension 26616 | -4/Extension | Identified exit to Cetus 27161 | -4/Extension | Spotted B-86 Titan 27241 | -4/Extension | Energy Cycler disabled 27242 | -4/Extension | Rescued A7 27242 | -4/Extension | Rescued a captive Derelict 27242 | -4/Extension | Rescued a captive Derelict 27242 | -4/Extension | Rescued a captive Derelict 27242 | -4/Extension | Rescued a captive Derelict 27243 | -4/Extension | Rescued a captive Derelict 27260 | -4/Extension | Rescued a captive Derelict 27270 | -4/Extension | Rescued a captive Derelict 27554 | -4/Extension | Destroyed B-86 Titan 27575 | -4/Extension | Discovered new exit (range 19) 27575 | -4/Extension | Spotted B-86 Titan 27593 | -4/Extension | Destroyed B-86 Titan 27715 | -4/Extension | Disrupted transfer network 27853 | -4/Extension | Identified exit to Research 28150 | -4/Extension | Disrupted transfer network 28202 | -4/Extension | Destroyed 9 combat bots 28223 | -4/Extension | Entered Cetus 28223 | -4/Cetus | Accompanied by 5 allies (A7) 28228 | -4/Cetus | Acquired a Cetus Manufacturing Module code from A7 28229 | -4/Cetus | Spotted Cetus Guard 28229 | -4/Cetus | Spotted Cetus Guard 28234 | -4/Cetus | Spotted Cetus Guard 28235 | -4/Cetus | Spotted Cetus Guard 28246 | -4/Cetus | Destroyed Cetus Guard 28251 | -4/Cetus | Allies destroyed Cetus Guard 28253 | -4/Cetus | Destroyed Cetus Guard 28257 | -4/Cetus | Allies destroyed Cetus Guard 28357 | -4/Cetus | Started Cetus Manufacturing Module 28382 | -4/Cetus | Manufactured an Enhanced Grunt 28407 | -4/Cetus | Manufactured an Enhanced Grunt 28432 | -4/Cetus | Manufactured an Enhanced Grunt 28457 | -4/Cetus | Manufactured an Enhanced Grunt 28482 | -4/Cetus | Manufactured an Enhanced Grunt 28500 | -4/Cetus | Discovered new exit (range 21) 28532 | -4/Cetus | Spotted Cetus Guard 28534 | -4/Cetus | Spotted Cetus Guard 28535 | -4/Cetus | Spotted Cetus Guard 28543 | -4/Cetus | Destroyed Cetus Guard 28544 | -4/Cetus | Allies destroyed Cetus Guard 28548 | -4/Cetus | Allies destroyed Cetus Guard 28548 | -4/Cetus | Spotted Cetus Guard 28553 | -4/Cetus | Discovered exit to Research (range 21) 28557 | -4/Cetus | Destroyed Cetus Guard 28570 | -4/Cetus | Found Prototype Device 28570 | -4/Cetus | Identified Exp. Thermal Shield 28588 | -4/Cetus | Met Revision 17 28735 | -4/Cetus | Entered Archives 28735 | -4/Archives | Accompanied by 9 allies (A7) 28791 | -4/Archives | Discovered exit to Research (range 16) 28801 | -4/Archives | Unable to access archive contents 28807 | -4/Archives | Discovered new exit (range 14) 28843 | -4/Archives | Entered Hub_04(d) 28843 | -4/Hub_04(d) | Accompanied by 8 allies 29228 | -4/Hub_04(d) | Discovered exit to Research (range 6) 29259 | -4/Hub_04(d) | Entered Research 29259 | -3/Research | Accompanied by 6 allies 29259 | -3/Research | Evolved 2 slots: Utility x2 29260 | -3/Research | Identified exit to Quarantine 29262 | -3/Research | Loaded intel: 4 repair station locations 29459 | -3/Research | Revision forces began assault on 0b10 29501 | -3/Research | Met up with Revision 17++ 29959 | -3/Research | Research terminal network offline 30320 | -3/Research | Discovered new exit (range 17) 30604 | -3/Research | Discovered new exit (range 20) 30609 | -3/Research | Spotted Striker 30634 | -3/Research | Destroyed Striker 30666 | -3/Research | Lost 5 allies 30680 | -3/Research | Spotted Striker 30681 | -3/Research | Destroyed Striker 30702 | -3/Research | Destroyed 9 combat bots 30746 | -3/Research | Spotted Striker 30749 | -3/Research | Destroyed Striker 30940 | -3/Research | Identified exit to Research 30942 | -3/Research | Entered another Research area 30942 | -2/Research | Accompanied by 1 ally 30942 | -2/Research | Warlord forces began assault on 0b10 30942 | -2/Research | Evolved 2 slots: Propulsion x1, Weapon x1 31052 | -2/Research | Research machine network offline 31232 | -2/Research | Met up with Warlord 31261 | -2/Research | Found Prototype Processor 31261 | -2/Research | Identified Exp. Melee Analysis Suite 31483 | -2/Research | Spotted Executioner 31486 | -2/Research | Spotted Striker 31547 | -2/Research | Found Exp. Core Analyzer 31554 | -2/Research | Found Exp. Core Analyzer 31643 | -2/Research | Discovered new exit (range 21) 31686 | -2/Research | Borebot progress halted 31703 | -2/Research | Borebot progress halted 31718 | -2/Research | Borebot progress halted 31829 | -2/Research | Discovered new exit (range 12) 32096 | -2/Research | Spotted Striker 32170 | -2/Research | Warlord invited to help at Command 32170 | -2/Research | Given Cave Seal Controls access code 32245 | -2/Research | Spotted Executioner 32245 | -2/Research | Spotted Executioner 32364 | -2/Research | Lost 5 allies 32613 | -2/Research | Entered Testing 32614 | -2/Testing | Maximum security lockdown engaged 32757 | -2/Testing | Found Prototype Ballistic Cannon 32764 | -2/Testing | Identified Omega Cannon 32907 | -2/Testing | Spotted Striker 32907 | -2/Testing | Spotted Striker 32907 | -2/Testing | Spotted Executioner 32914 | -2/Testing | Destroyed Executioner 32934 | -2/Testing | Destroyed Striker 32975 | -2/Testing | Destroyed 41 combat bots 32975 | -2/Testing | Lost 13 parts (1p1n5u6w) 33032 | -2/Testing | Spotted Investigator 33052 | -2/Testing | Scanned by Researcher 33062 | -2/Testing | Destroyed Investigator 33069 | -2/Testing | Spotted Striker 33072 | -2/Testing | Spotted Executioner 33095 | -2/Testing | Spotted Investigator 33096 | -2/Testing | Destroyed Striker 33106 | -2/Testing | Destroyed Executioner 33159 | -2/Testing | Core integrity fell below 50% 33177 | -2/Testing | Spotted Executioner 33196 | -2/Testing | Spotted Striker 33196 | -2/Testing | Spotted Executioner 33198 | -2/Testing | Core integrity fell below 20% 33212 | -2/Testing | Destroyed by G-73 Enforcer with Heavy Laser Last Messages --------------- 33177_ Slug penetrates Wall. 33178_ Slug penetrates Vacuum Chamber. 33178_ Slug penetrates H-88 Terminator. 33191_ C-45 Heavy ARC bursts open, deploying its payload. 33191_ G-73 Enforcer unfolds itself. 33191_ I-47 Archangel unfolds itself. 33194_ Slug penetrates Wall. 33196_ C-45 Heavy ARC bursts open, deploying its payload. 33196_ Executioner unfolds itself. 33197_ Penetrated by Slug. 33198_ Exp. Core Analyzer destroyed. 33198_ Critical hit (Burn: +37). 33198_ Penetrated by Slug. 33198_ Slug penetrates G-73 Enforcer. 33205_ Held in stasis. 33205_ Investigator is analyzing... 33209_ C-45 Heavy ARC bursts open, deploying its payload. 33209_ G-73 Enforcer unfolds itself. 33209_ L-61 Swordsman unfolds itself. 33209_ G-73 Enforcer unfolds itself. Map ----- +----------------------------------------------------+ | ?????????????????????????????????????????????????? | | ?????????????????????????????????????????????????? | | ?????????????????????????????????????????????????? | | ?????????????????????????????????????????????????? | | ?????????????????????????????????????????????????? | | ?????????????????????????????????????????????????? | | ?????????????????????????? ??????????????????????? | | ?????????????????????????? ??????????????????????? | | ####?????????????????????? ??????????????????????? | | #?????????????????????? ??????????????????????? | | " #?????????????????????? ??????????????????????? | | " ###???????????????????# ??????????????????????? | | " + #???????????????????= ??????????????????????? | | # #??????????????????? ??????????????????????? | | # ############???????# "??i???????????????????? | | # ## #???????# ??????????????????????? | | #### ## """ #???????#g#??????????????????????? | | # # ## """ #???????#l#??????????????????????? | | " + """ #???????#g#??????????????????????? | | %" ## """ #???????#g#??????????????????????? | | "" ## """ "" #???????# #??????????????????????? | | "" ## S " #???????# #??????????????????????? | | T" =## % " #???????# #??????????????????????? | | """ ######"#####???????# #??????????????????????? | | " !^# #???????# #??????????????????????? | | = ##???????#@#???????????????K??????? | | =] * ##??????#%#??????????????????????? | | ]### # # # #??????# #??????????????????????? | | %=# ##### ### ######?# #??????????????????????? | | [# % # #?# #???########???????????? | | = # # #?# #??? #???????????? | | ## # """ ### ##? #???????????? | | ## ## ## """ # #? #???????????? | | #### # ### # """ # # #???????????? | | ###### # # # # " #???????????? | | [!% #%% # """ # + #???????????? | | =""" ##%[ """ # # #???????????? | | =""" ## """ # gK# #???????????? | | %""" # = # # c ###########???????????? | | " # % === # g h #??????????????? | | """ ! =%=%% === # g #??????????????? | | """ [% "" == # g" #????????????? | | """ " [ # # "i" #?????????? | | #%[%!# ######## #???????? ?? | | * # "" "" #??????# #?#####= ????? | | ! % # ""S"" ######## ###""""######### | | # """" # ^ | | ##+#+# # ! ########## % ######### | | # ## #! ! # """"" ## #???????? | | # # #* %]# ""T"" ## #???????? | +----------------------------------------------------+ Best States ------------- Heat Dissipation 61 Coolant Potential 120 Energy Generation 49 Energy Capacity 600 Matter Stores 419 Matter Capacity 450 Sight Range 22 Terrain Scan Range 16 Terrain Scan Density 10 Jamming Range 14 EM Shielding 2 Corruption Block 20 Armor Coverage 900 Resistance: KI 20 Resistance: TH 30 Phase Shifting 20 Evasion (%) 50 Targeting Accuracy 8 Melee Accuracy 5 Target Analysis 8 Core Analysis 12 Armor Integrity Analysis 30 Recoil Reduction 5 Kinecelleration 30 Offensive Hacking 10 Defensive Hacking 14 Item Schematics ----------------- Hcp. Storage Unit | -10/Materials | Hacked Imp. Reaction Control System | -7/Zion | Archive Greatsword | -7/Zion | Archive Lgt. Angular Momentum Engine | -7/Zion | Archive Hrd. Heavy Armor Plating | -7/Zion | Archive Thermal Shield | -7/Zion | Archive Imp. Carbon-fiber Leg | -7/Zion | Archive Force Field | -7/Zion | Archive Gravmag System | -7/Zion | Archive Imp. Kinecellerator | -7/Zion | Archive Imp. Dynamic Insulation System | -7/Zion | Archive Arm. Huge Wheel | -7/Zion | Archive Arc Projector | -7/Zion | Archive Gatling Laser | -7/Zion | Archive Fusion Compressor | -7/Zion | Archive HERF Cannon | -7/Zion | Archive Robot Schematics ------------------ X-57 Shotgunner | -7/Zion | Archive R-06 Scavenger | -7/Zion | Archive B-48 Gladiator | -7/Zion | Archive Fabricated ------------ Thermal Shield | x2 | -7/Factory | Preloaded Repaired ---------- Autogun | 46% | -10/Materials Ion Engine | 60% | -10/Materials Com. Wheel | 43% | -10/Materials Studied --------- Autogun | -8/Materials | Hacked Hpw. Shotgun | -8/Materials | Hacked Hvy. Assault Rifle | -7/Factory | Hacked Adv. Assault Cannon | -7/Factory | Hacked Adv. Treads | -7/Factory | Hacked Coil Gun | -6/Factory | Hacked Enh. Gauss Cannon | -5/Factory | Hacked Railgun | -4/Factory | Hacked KE Penetrator | -4/Factory | Hacked Alien Tech Used ----------------- None Achievements -------------- Analysis Probe Betrayal Most Foul Bumper Bots DATA ERROR: Steam Global Achievement% Explosive Keycard Fancy Inventory For Emergencies Only Heavy Suspicion Hornet's Nest Hydra I Have A Map? I Laugh At Your Crits I Like You, Cogmind Immobile And Lovin' It Into The Breach Item+ King Drone Look Less Dangerous Next Time Organ Harvest Overwhelming Protector Recruitment Drive Sixth Sense Spot Them First Suspicious There's More Where That Came From Welcome To The Revolution Challenges ------------ None Game ------ Seed HeavyShiftBoregun Manual? 0 Play Time 04:30:39 Cumulative 184.6 hours Start 2025.10.22 @ 20:38:09 End 2025.10.23 @ 18:32:41 Sessions 3 Manual Loads 0 Difficulty Rogue Special Mode None Game No. 158 Rogue 158 Adventurer 0 Explorer 0 Win Type - Total 3 Types 2/0/0/1/0/0/0/0/0/0 Lore% 73 Gallery% 65 Achievement% 36 Wizard Run 0 Options --------- Layout 0 ASCII 0 Keyboard 1 Movement Numpad Keybinds 0 Fullscreen 1 Font 24/Terminus Map View 76x50 Zoom Use 0% Tactical HUD 1 Map Filters NONE Filters NONE Steam 1 RUN: 18dc90d4-f2f1-4210-bafe-8449e36f571c